[Event "FRA-ch Teams Top 16-A 2022"]
[Site "Chartres"]
[Date "2022.06.11"]
[Round "3.11"]
[White "Eden, James"]
[Black "Van Foreest, Lucas"]
[Result "0-1"]
[ECO "B01"]
[WhiteElo "2273"]
[BlackElo "2572"]
[Annotator "TA"]
[PlyCount "122"]
[EventDate "2022.06.09"]
[EventType "team-tourn"]
[EventCountry "FRA"]
[SourceTitle "playchess.com"]
[Source "ChessBase"]
[SourceQuality "1"]
[TimeControl "40/5400+30:1800+30"]

{[%evp 10,122,58,48,39,35,28,41,37,11,10,4,22,25,29,22,28,23,23,18,29,9,8,0,0,0,2,-27,0,-22,-22,-22,-24,-31,-15,-19,0,-14,16,16,14,0,0,-54,-54,-53,-50,-44,-36,-37,-39,-46,-38,-92,-92,-93,-93,-93,-93,-93,-93,-93,-93,-93,-91,-93,-93,-93,-93,-97,-97,-144,-144,-173,-173,-516,-173,-158,-144,-252,-144,-211,-205,-829,-181,-1847,-1385,-1833,-370,-1822,-1621,-1973,-447,-2552,-2231,-2176,-1767,-29960,-29958,-29960,-29957,-29963,-29966,-29965,-29966,-29965,-29966,-29961,-29962,-29975,-29976,-29976,-29977,-29969,-29951]} 1. e4 {[%emt 0:00:27]} d5 {[%emt 0:00:26]} 2. exd5 {[%emt 0:00:19]} Qxd5 {[%emt 0:00:24]} 3. Nc3 {[%emt 0:00:26]} Qd6 {[%emt 0:00:16]} 4. d4 {[%emt 0:00:34]} Nf6 {[%emt 0:00:12]} 5. Nf3 {[%emt 0:04:11]} c6 {[%emt 0:00:21]} 6. Ne5 {[%emt 0:02:25]} Nbd7 {[%emt 0:00:29] B01: Scandinavian Defence.} 7. Bf4 {[%emt 0:00:44]} Nd5 {[%emt 0:08:11]} 8. Nxd5 {[%emt 0:08:03]} Qxd5 {[%emt 0:00:35] White is slightly better.} 9. Qf3 {[%emt 0:13:02] Prevents Qe4+.} (9. Nf3 {looks sharper.} e5 10. Qe2 e4 11. Qe3) 9... Qxf3 {[%emt 0:05:55]} ({Don't take} 9... Qxd4 10. Nxf7 $1 Qxb2 11. Rd1 $1 $16) 10. Nxf3 {[%emt 0:05:46]} Nf6 {[%emt 0:00:06]} 11. Bd3 {[%emt 0:02:05]} Bg4 {[%emt 0:01:58]} 12. Ne5 {[%emt 0:03:37]} Bh5 {[%emt 0:00:09] [#]} 13. Bd2 $146 {[%emt 0:08:01]} ({Predecessor:} 13. f3 e6 14. O-O-O Bg6 15. Rhe1 Bxd3 16. Rxd3 Nd7 17. c4 Bd6 18. Kc2 O-O-O 19. Bg5 Nxe5 20. dxe5 {½-½ (40) Molnar,B (2280)-Mrkonjic,N (2365) Hungary 2019}) 13... e6 {[%emt 0:00:20]} 14. h3 {[%emt 0:02:20]} Bd6 {[%emt 0:01:14]} 15. g4 {[%emt 0:01:42]} Bg6 {[%emt 0:00:05]} 16. Nxg6 {[%emt 0:00:21]} hxg6 {[%emt 0:00:04]} 17. Ke2 {[%emt 0:00:29]} O-O-O {[%emt 0:00:48]} 18. Kf3 {[%emt 0:03:19]} Be7 {[%emt 0:02:29]} 19. Be3 {[%emt 0:03:39]} Nd5 {[%emt 0:00:20]} 20. c3 {[%emt 0:01:28]} Rh4 {[%emt 0:06:10]} 21. Rad1 {[%emt 0:01:51]} Rdh8 {[%emt 0:00:28]} 22. Kg2 {[%emt 0:00:51]} Bd6 {[%emt 0:01:42]} 23. c4 {[%emt 0:01:03]} Nf4+ {[%emt 0:02:43]} 24. Bxf4 {[%emt 0:02:36]} Bxf4 {[%emt 0:00:03]} 25. Be4 {[%emt 0:00:27]} Rd8 {[%emt 0:00:30]} 26. Rd3 {[%emt 0:01:38]} (26. a3 $11) 26... f5 $15 {[%emt 0:00:20]} 27. Bf3 {[%emt 0:04:13]} e5 {[%emt 0:00:54]} 28. Be2 {[%emt 0:00:07]} Rxd4 {[%emt 0:03:20]} 29. Rxd4 {[%emt 0:02:43]} exd4 {[%emt 0:00:23][%mdl 4096] Endgame KRB-KRB} 30. c5 {[%emt 0:02:06]} Rh8 {[%emt 0:03:17]} 31. Bd3 {[%emt 0:01:33]} (31. Rd1 $15) 31... fxg4 $17 {[%emt 0:09:15]} 32. hxg4 {[%emt 0:00:27]} Rxh1 {[%emt 0:01:41]} 33. Kxh1 {[%emt 0:00:07] KB-KB} Bc1 {[%emt 0:00:04]} 34. b3 {[%emt 0:02:30]} g5 {[%emt 0:01:57]} 35. Kg2 {[%emt 0:00:32]} Ba3 {[%emt 0:00:04]} 36. Kf3 {[%emt 0:00:17]} Bxc5 {[%emt 0:00:02]} 37. Bf5+ {[%emt 0:08:21]} Kc7 {[%emt 0:00:06]} 38. Ke4 {[%emt 0:00:20]} Kd6 {[%emt 0:08:30]} 39. Bc8 {[%emt 0:01:46]} b5 {[%emt 0:00:32]} 40. f3 {[%emt 0:08:13]} ({White should try} 40. a4) 40... Bb6 $1 {[%emt 0:06:36]} 41. a4 {[%emt 0:08:21]} Kc5 $1 {[%emt 0:01:22]} 42. Bb7 $2 {[%emt 0:02:03]} (42. axb5 {was the crucial defense.} cxb5 43. Be6) 42... Bd8 $2 {[%emt 0:06:00]} (42... Kb4 43. Bxc6 a6) 43. Kd3 {[%emt 0:00:28]} Bf6 {[%emt 0:01:16]} 44. Ba8 {[%emt 0:01:22] [#]} (44. axb5 $17 Kxb5 45. Bc8) 44... Kb6 {[%emt 0:05:41]} (44... a6 $1 $19 {White must now prevent ...Be5.} 45. Bb7 Kb6) 45. Kc2 {[%emt 0:02:39] [#]} (45. axb5 $17 {keeps fighting.} Kxb5 46. Kc2) 45... a6 $1 $19 {[%emt 0:02:03] Strongly threatening ...c5.} 46. Kd3 $2 {[%emt 0:00:49]} (46. a5+ Kc7 47. Kd2) 46... c5 {[%emt 0:00:27]} 47. axb5 $2 {[%emt 0:02:09]} (47. Bd5) 47... axb5 {[%emt 0:01:17]} 48. Bd5 {[%emt 0:01:43]} Ka5 {[%emt 0:00:08]} 49. Be6 $2 {[%emt 0:00:34]} (49. Bf7 Be5 50. Bd5) 49... Kb4 {[%emt 0:00:03]} 50. Bf7 {[%emt 0:01:28]} Bd8 {[%emt 0:00:08]} 51. Be6 {[%emt 0:00:40]} (51. Bd5 $142 g6 52. Be6) 51... Bb6 {[%emt 0:00:03]} 52. Bf7 {[%emt 0:01:00]} Ka3 {[%emt 0:02:45]} 53. Kc2 {[%emt 0:05:16]} c4 {[%emt 0:00:10] Black mates.} 54. bxc4 {[%emt 0:00:14]} b4 {[%emt 0:00:01][%cal Bb5b4,Bb4b3][%mdl 32]} 55. Bg6 {[%emt 0:11:34]} Ka2 {[%emt 0:01:02]} 56. c5 {[%emt 0:01:38]} b3+ {[%emt 0:00:28]} 57. Kd3 {[%emt 0:00:24]} Bxc5 {[%emt 0:00:06]} 58. Bf7 {[%emt 0:01:04]} Bb6 {[%emt 0:01:46]} 59. Be6 {[%emt 0:00:37]} Ka3 {[%emt 0:00:15]} 60. Bc4 {[%emt 0:00:31]} b2 {[%emt 0:00:15]} 61. Kc2 {[%emt 0:00:07]} d3+ {[%emt 0:01:36] Weighted Error Value: White=1.02/Black=0.15 (very precise)} 0-1

[Event "FRA-ch Teams Top 16-A 2022"]
[Site "Chartres"]
[Date "2022.06.11"]
[Round "3.12"]
[White "Shchekachev, Andrei"]
[Black "Sochacki, Wojtek"]
[Result "1/2-1/2"]
[ECO "B44"]
[WhiteElo "2508"]
[BlackElo "2324"]
[Annotator "TA"]
[PlyCount "94"]
[EventDate "2022.06.09"]
[EventType "team-tourn"]
[EventCountry "FRA"]
[SourceTitle "playchess.com"]
[Source "ChessBase"]
[SourceQuality "1"]
[TimeControl "40/5400+30:1800+30"]

{[%evp 17,94,12,9,0,0,0,0,-12,0,0,0,0,0,0,0,-28,-20,-20,-18,-25,-25,-29,-25,-30,-27,-32,-17,-39,-23,-47,-42,-52,-41,-31,-27,-67,-70,-85,-49,-49,-48,-47,-45,-73,-74,-93,-99,-214,-145,-141,-131,-129,-54,-79,-49,-74,0,-6,0,0,0,0,36,0,0,0,0,-15,0,0,0,0,0,0,0,0,0,0,0]} 1. Nf3 {[%emt 0:00:05]} c5 {[%emt 0:07:08]} 2. c4 {[%emt 0:00:29]} Nc6 {[%emt 0:00:18]} 3. d4 {[%emt 0:00:12]} cxd4 {[%emt 0:00:06]} 4. Nxd4 {[%emt 0:00:06]} Nf6 {[%emt 0:00:07]} 5. Nc3 {[%emt 0:00:16]} e6 {[%emt 0:00:20]} 6. e4 {[%emt 0:01:51]} Bb4 {[%emt 0:01:32]} 7. Nxc6 {[%emt 0:00:12]} bxc6 {[%emt 0:00:35]} 8. Bd3 {[%emt 0:00:11]} e5 {[%emt 0:03:34]} 9. O-O {[%emt 0:01:08]} O-O {[%emt 0:02:21]} 10. h3 $1 {[%emt 0:00:29][%mdl 4] outshines the older 10.Bg5. B44: Sicilian: Taimanov: 5 Nb5.} d6 {[%emt 0:28:10]} 11. Bd2 {[%emt 0:16:08]} Bc5 {[%emt 0:09:22] [#]} 12. Re1 $146 {[%emt 0:02:42]} ({Predecessor:} 12. Rc1 Be6 13. Ne2 Rb8 14. b3 Nh5 15. Kh2 Qh4 16. Qe1 f5 17. f3 Qxe1 18. Rfxe1 {½-½ (49) Mrva,V (2059)-Haring,F (2267) Slovakia 2017}) 12... Bd4 {[%emt 0:05:43]} ({Don't take} 12... Qb6 13. Na4 Qc7 14. Nxc5 dxc5 15. Be3 $16) 13. Be3 {[%emt 0:05:15]} Re8 {[%emt 0:06:23]} 14. Rb1 {[%emt 0:09:22]} Bb7 {[%emt 0:08:11]} 15. Qf3 {[%emt 0:21:53]} Nd7 {[%emt 0:09:51]} 16. Bd2 {[%emt 0:16:14]} Re6 {[%emt 0:02:19] ...Rf6 is the strong threat.} 17. Be3 {[%emt 0:02:22]} a5 {[%emt 0:07:14]} 18. Qd1 {[%emt 0:03:29]} Qh4 {[%emt 0:02:32]} 19. Bf1 {[%emt 0:02:18]} c5 {[%emt 0:01:59]} 20. g3 {[%emt 0:03:19]} Qd8 {[%emt 0:01:13]} 21. Nd5 {[%emt 0:12:59]} Nb6 22. h4 {[%emt 0:00:00]} Nxd5 {[%emt 0:01:25]} 23. cxd5 {[%emt 0:00:00]} Re7 {[%emt 0:00:06]} 24. Bb5 {[%emt 0:00:00]} Ba6 {[%emt 0:00:43]} 25. Bxa6 {[%emt 0:00:00]} Rxa6 {[%emt 0:00:02]} 26. Bg5 {[%emt 0:00:00]} f6 {[%emt 0:00:06]} 27. Bd2 {[%emt 0:00:00]} Rb7 {[%emt 0:00:27]} 28. b3 {[%emt 0:00:00]} Qd7 {[%emt 0:00:04]} 29. Qe2 {[%emt 0:00:00]} Ra8 {[%emt 0:00:04][%cal Ba6a8,Ba8f8,Bf8f5][%mdl 32]} 30. Qf3 {[%emt 0:01:46] Prevents f5.} Qh3 {[%emt 0:01:26][%cal Of6f5]} 31. Rec1 {[%emt 0:01:18]} f5 {[%emt 0:01:10] [#] White must now prevent ...fxe4.} 32. exf5 {[%emt 0:00:26]} (32. Be3 $17 {only move.}) 32... Rf8 {[%emt 0:00:44]} 33. Be3 {[%emt 0:01:35]} Rxf5 {[%emt 0:00:12]} 34. Qg2 {[%emt 0:00:15]} Qxg2+ {[%emt 0:01:25]} (34... Qg4 $142 {Threatens to win with ...Bxe3.} 35. Bxd4 cxd4 36. Rc8+ Kf7) 35. Kxg2 $17 {[%emt 0:00:02]} Bxe3 {[%emt 0:00:24]} 36. fxe3 {[%emt 0:00:01][%mdl 4096] Endgame KRR-KRR} Rbf7 {[%emt 0:00:31]} (36... e4 $17) 37. Rb2 $1 $11 {[%emt 0:00:26]} Rb7 {[%emt 0:00:31]} 38. Rc4 {[%emt 0:01:25]} Rf8 {[%emt 0:00:30]} 39. Ra4 {[%emt 0:01:02]} Rb5 {[%emt 0:00:01]} 40. Rc2 {[%emt 0:00:33]} Ra8 {[%emt 0:00:32] The position is equal.} 41. Rcc4 {[%emt 0:30:25]} Kf7 {[%emt 0:30:36]} 42. h5 {[%emt 0:00:00]} Ra7 {[%emt 0:00:00]} 43. Kh3 {[%emt 0:00:00]} Rb8 {[%emt 0:00:00]} 44. Kg4 {[%emt 0:00:00]} Kf6 {[%emt 0:00:00]} 45. Rc2 {[%emt 0:00:00]} h6 {[%emt 0:00:00]} 46. Rcc4 {[%emt 0:00:00]} g6 {[%emt 0:00:00]} 47. Kh4 {[%emt 0:00:00]} g5+ {[%emt 0:00:00] Weighted Error Value: White=0.10 (very precise) /Black=0.12 (very precise)} 1/2-1/2

[Event "FRA-ch Teams Top 16-A 2022"]
[Site "Chartres"]
[Date "2022.06.11"]
[Round "3.13"]
[White "Saatdjian, Thomas"]
[Black "Abergel, Thal"]
[Result "0-1"]
[ECO "D11"]
[WhiteElo "2271"]
[BlackElo "2378"]
[Annotator "TA"]
[PlyCount "108"]
[EventDate "2022.06.09"]
[EventType "team-tourn"]
[EventCountry "FRA"]
[SourceTitle "playchess.com"]
[Source "ChessBase"]
[SourceQuality "1"]
[TimeControl "40/5400+30:1800+30"]

{[%evp 11,108,2,13,8,5,5,4,0,0,0,0,0,0,0,0,0,0,-62,-49,-58,-54,-56,-62,-56,-62,-57,-70,-76,-67,-66,-48,-40,-38,-63,-33,-59,-44,-42,-50,-31,-35,-29,-43,-71,-71,-74,-65,-138,-126,-139,-118,-153,-111,-112,-113,-108,-107,-96,-93,-93,-93,-95,-92,-114,-91,-110,-102,-117,-114,-200,-181,-200,-173,-159,-159,-142,-152,-423,-353,-364,-70,-326,-272,-603,-595,-2151,-2044,-1670,-1451,-29978,-29979,-29979,-29980,-29980,-29981,-29981,-29982,-29983,-29983]} 1. d4 {[%emt 0:00:03]} d5 {[%emt 0:00:07]} 2. Nf3 {[%emt 0:00:10]} Nf6 {[%emt 0:01:29]} 3. c4 {[%emt 0:00:19]} c6 {[%emt 0:00:15]} 4. Qc2 {[%emt 0:00:31]} g6 {[%emt 0:00:48]} 5. Bf4 {[%emt 0:00:07]} dxc4 {[%emt 0:00:51]} 6. Qxc4 {[%emt 0:07:38]} Bg7 {[%emt 0:00:57]} 7. e3 {[%emt 0:03:36] D11: Slav Defence: 3 Nf3 sidelines and 3...Nf6 4 e3 Bg4.} O-O {[%emt 0:00:55]} 8. Be2 {[%emt 0:00:14]} Be6 {[%emt 0:03:15]} 9. Qc2 {[%emt 0:06:47] The position is equal.} Bf5 {[%emt 0:09:57] Inhibits e4.} 10. Qb3 {[%emt 0:04:50]} Qb6 {[%emt 0:03:51]} 11. Nbd2 {[%emt 0:05:19]} Qxb3 {[%emt 0:10:24]} 12. Nxb3 {[%emt 0:02:39] [#]} a5 $146 {[%emt 0:00:14]} ({Predecessor:} 12... Nbd7 13. O-O a5 14. Nbd2 a4 15. a3 Ne4 16. Nc4 Be6 17. Rac1 b5 18. Nce5 {½-½ (18) Deforel,J (1961)-Underwood,W (2052) ICCF email 2018}) 13. Nc5 {[%emt 0:07:40]} Nbd7 {[%emt 0:02:48]} 14. Nxb7 {[%emt 0:25:47]} (14. Nxd7 $11 Nxd7 15. O-O) 14... Nd5 $15 {[%emt 0:03:53]} 15. Be5 {[%emt 0:04:29]} Bxe5 {[%emt 0:14:15]} 16. Nxe5 {[%emt 0:00:21]} Nxe5 {[%emt 0:01:07]} 17. dxe5 {[%emt 0:00:02]} Rfb8 {[%emt 0:00:11][%cal Bf8b8,Bb8b2,Bb2b4,Bb4e4][%mdl 32]} 18. Nc5 {[%emt 0:00:01] Strongly threatening e4.} Rxb2 {[%emt 0:00:14] Threatens to win with ...Nb4.} 19. Na4 {[%emt 0:16:04] [#]} Rb4 {[%emt 0:03:08] 0x0.001762ce6e9adp-1022s more active pieces. The white rooks are badly placed.} 20. Bd1 {[%emt 0:00:05]} Re4 {[%emt 0:09:47]} 21. O-O {[%emt 0:03:40]} Rxe5 {[%emt 0:00:24]} 22. Rc1 {[%emt 0:00:00]} Rb8 {[%emt 0:12:21]} (22... Bd3 $5 23. Re1 Bb5 $11) 23. Bb3 {[%emt 0:05:06]} Nb4 {[%emt 0:00:36]} 24. Rfd1 {[%emt 0:00:05]} Be6 {[%emt 0:01:20]} 25. Bxe6 {[%emt 0:00:58]} Rxe6 {[%emt 0:00:01]} 26. a3 {[%emt 0:00:09]} Na6 {[%emt 0:00:42]} 27. Nc5 {[%emt 0:01:07] Against Rb3} Nxc5 {[%emt 0:00:17]} 28. Rxc5 $17 {[%emt 0:00:02][%mdl 4096] Endgame KRR-KRR} Rb5 {[%emt 0:02:07]} 29. Rc3 {[%emt 0:00:18]} ({White should try} 29. Rdc1 $15) 29... Rd6 {[%emt 0:01:33][%cal Rd6d1]} 30. Rf1 {[%emt 0:03:02]} Rd2 {[%emt 0:02:48]} 31. g3 {[%emt 0:03:01]} e6 {[%emt 0:02:36]} 32. Rxc6 {[%emt 0:00:42]} Rb3 {[%emt 0:01:56]} 33. Ra1 {[%emt 0:00:06]} Rbb2 {[%emt 0:00:15]} 34. Rf1 {[%emt 0:00:01]} Ra2 {[%emt 0:00:43]} 35. Rc3 {[%emt 0:00:02]} a4 {[%emt 0:00:41]} 36. Kg2 {[%emt 0:00:19]} Rdb2 {[%emt 0:00:31]} 37. Kf3 {[%emt 0:01:14]} Kg7 {[%emt 0:00:56]} 38. h4 {[%emt 0:00:33]} h5 {[%emt 0:00:41]} 39. Ke4 {[%emt 0:01:30]} Kf6 {[%emt 0:02:28]} ({Weaker is} 39... Rxf2 40. Rxf2 Rxf2 41. Rc4 $15) 40. Rd3 {[%emt 0:00:53]} (40. Kf3 $17) 40... Rb3 $19 {[%emt 0:03:48]} ({Worse is} 40... Rxf2 41. Rxf2+ Rxf2 42. Rd4 $11) 41. Rxb3 {[%emt 0:30:02]} axb3 {[%emt 0:30:06] KR-KR} 42. Rb1 {[%emt 0:00:03]} Rxa3 {[%emt 0:01:12]} 43. f3 {[%emt 0:01:13]} g5 {[%emt 0:00:00]} 44. Rb2 $2 {[%emt 0:00:00]} (44. f4 $17 {was the only chance.}) 44... gxh4 {[%emt 0:00:00]} 45. gxh4 {[%emt 0:00:00]} Ra4+ {[%emt 0:00:00]} 46. Kd3 {[%emt 0:00:00]} Rb4 {[%emt 0:00:00] Hoping for ...Kf5.} ({Stronger than} 46... Rxh4 47. Rxb3 Rh2 48. Rb5 $17) 47. Kd2 $2 {[%emt 0:00:00]} (47. Kc3 Rxh4 48. Rxb3) 47... Kf5 {[%emt 0:00:00]} 48. Rb1 {[%emt 0:00:00]} b2 {[%emt 0:00:00] White must now prevent ...e5.} 49. Kc3 {[%emt 0:00:00]} Rb7 {[%emt 0:00:00]} 50. Rxb2 {[%emt 0:00:00]} Rxb2 {[%emt 0:00:00] Black mates.} 51. Kxb2 {[%emt 0:00:00] [#]} e5 $1 {[%emt 0:00:00]} 52. Kc3 {[%emt 0:00:00]} e4 {[%emt 0:00:00]} 53. fxe4+ {[%emt 0:00:00]} Kg4 {[%emt 0:00:00]} 54. Kd4 {[%emt 0:00:00]} Kxh4 {[%emt 0:00:00] Weighted Error Value: White=0.54/Black=0.09 (flawless)} 0-1

[Event "FRA-ch Teams Top 16-A 2022"]
[Site "Chartres"]
[Date "2022.06.11"]
[Round "3.14"]
[White "Flom, Gabriel"]
[Black "Da Silva, Quentin"]
[Result "1-0"]
[ECO "A45"]
[WhiteElo "2442"]
[BlackElo "2171"]
[Annotator "TA"]
[PlyCount "61"]
[EventDate "2022.06.09"]
[EventType "team-tourn"]
[EventCountry "FRA"]
[SourceTitle "playchess.com"]
[Source "ChessBase"]
[SourceQuality "1"]
[TimeControl "40/5400+30:1800+30"]

{[%evp 11,61,7,4,5,11,4,18,14,19,18,24,22,18,16,33,33,44,36,39,12,33,38,50,37,52,51,143,143,405,395,385,223,495,470,467,331,326,241,760,760,1056,1054,1705,1668,1484,1402,2794,2069,2129,1593,2632,1619]} 1. d4 {[%emt 0:00:02]} Nf6 {[%emt 0:01:13]} 2. Bg5 {[%emt 0:00:03]} g6 {[%emt 0:00:41]} 3. Bxf6 {[%emt 0:00:03]} exf6 {[%emt 0:00:04]} 4. e3 {[%emt 0:00:25]} Bg7 {[%emt 0:00:41]} 5. g3 {[%emt 0:00:05]} d5 {[%emt 0:03:09]} 6. Bg2 {[%emt 0:00:13]} O-O {[%emt 0:05:09]} 7. Ne2 {[%emt 0:00:15] A45: Trompowsky Attack.} c6 {[%emt 0:01:02]} 8. Nd2 {[%emt 0:00:04]} Be6 {[%emt 0:03:08]} 9. O-O {[%emt 0:00:08] The position is equal.} f5 {[%emt 0:04:36]} 10. Rc1 {[%emt 0:02:02]} Nd7 {[%emt 0:04:14][%cal Bb8d7,Bd7f6,Bf6e4][%mdl 32]} 11. c4 {[%emt 0:01:54]} dxc4 {[%emt 0:03:26]} 12. Nxc4 {[%emt 0:00:23]} Nf6 {[%emt 0:10:06]} 13. Nf4 {[%emt 0:00:13]} Re8 {[%emt 0:08:18] [#]} 14. b4 $146 {[%emt 0:00:27]} ({Predecessor:} 14. Nxe6 Rxe6 15. Qb3 Re7 16. Rfd1 Nd5 17. Ne5 Qd6 18. Bxd5 cxd5 19. Nd3 Rd8 20. Rc3 h6 21. Rdc1 b6 22. Nb4 Red7 23. Nc6 Kf8 24. Nxd8 {1-0 (24) Dos Santos,M-Baroin,B (2101) ICCF email 1999}) 14... Ne4 {[%emt 0:04:14]} 15. a4 {[%emt 0:02:51]} Bxc4 {[%emt 0:11:25]} 16. Rxc4 {[%emt 0:00:04][%cal Bc1c4,Bc4b4,Bb4b7][%mdl 32]} a5 {[%emt 0:01:21]} 17. Bxe4 {[%emt 0:01:23]} Rxe4 {[%emt 0:07:34]} 18. Qb3 {[%emt 0:00:24]} axb4 {[%emt 0:04:02]} ({Black should try} 18... Bh6 $14) 19. Rxb4 $16 {[%emt 0:00:09]} Qa5 $2 {[%emt 0:05:10][%mdl 8192] [#] A mistake that costs the game.} (19... Re7 $16) 20. Rxb7 $18 {[%emt 0:00:05]} Rf8 {[%emt 0:02:45]} 21. h4 {[%emt 0:02:54]} (21. Rc1 $142) 21... Rxf4 $2 {[%emt 0:04:46]} (21... Bh6 {was necessary.} 22. Ne2 Qa6) 22. exf4 {[%emt 0:01:42]} ({Much less strong is} 22. gxf4 Qd8 23. Qc4 Qxh4 24. Qxc6 g5 25. fxg5 f4 $18) 22... Bxd4 {[%emt 0:00:43]} 23. Qc4 {[%emt 0:00:14]} c5 {[%emt 0:00:52]} 24. Rb5 {[%emt 0:06:15]} Qd2 {[%emt 0:08:10]} (24... Qa8 25. a5 Re8) 25. a5 {[%emt 0:01:13][%cal Ba4a5,Ba5a6,Ba6a7][%mdl 32] White is clearly winning.} Re8 {[%emt 0:01:15]} 26. Rb7 {[%emt 0:00:03]} Rf8 {[%emt 0:02:52]} 27. a6 {[%emt 0:00:08]} Qa5 {[%emt 0:01:19]} 28. a7 {[%emt 0:00:09]} Qa3 {[%emt 0:00:41]} 29. Kg2 {[%emt 0:00:35] [#] Black must now prevent Re1.} Kg7 {[%emt 0:00:38]} 30. Qd5 {[%emt 0:00:29] Strongly threatening Re1.} Kh6 {[%emt 0:01:19]} 31. Rb8 {[%emt 0:00:27] Weighted Error Value: White=0.27 (precise) /Black=0.49} 1-0

[Event "FRA-ch Teams Top 16-A 2022"]
[Site "Chartres"]
[Date "2022.06.11"]
[Round "3.15"]
[White "Caille, Hugo"]
[Black "Vlachos, Anatole"]
[Result "0-1"]
[ECO "A91"]
[WhiteElo "2177"]
[BlackElo "2410"]
[Annotator "TA"]
[PlyCount "86"]
[EventDate "2022.06.09"]
[EventType "team-tourn"]
[EventCountry "FRA"]
[SourceTitle "playchess.com"]
[Source "ChessBase"]
[SourceQuality "1"]
[TimeControl "40/5400+30:1800+30"]

{[%evp 12,86,52,35,49,37,46,32,41,27,45,-10,12,-25,-21,-32,4,-8,0,0,0,-36,-33,-35,-33,-58,-43,-117,-110,-91,-111,-113,-91,-114,-101,-152,-144,-177,-180,-285,-285,-377,-368,-369,-369,-368,-366,-403,-363,-351,-221,-222,-231,-213,-221,-330,-323,-318,-294,-304,-314,-403,-400,-453,-446,-502,-494,-577,-534,-672,-658,-657,-661,-636,-651,-601,-568]} 1. d4 {[%emt 0:07:18]} f5 {[%emt 0:01:07]} 2. g3 {[%emt 0:00:48]} Nf6 {[%emt 0:00:05]} 3. Bg2 {[%emt 0:00:09]} e6 {[%emt 0:00:09]} 4. Nh3 {[%emt 0:00:16]} Be7 {[%emt 0:01:08]} 5. O-O {[%emt 0:00:32]} O-O {[%emt 0:01:01]} 6. c4 {[%emt 0:01:05]} d6 {[%emt 0:00:14]} 7. Nc3 {[%emt 0:00:57]} e5 {[%emt 0:11:23] A91: Classical Dutch: Early Deviations.} 8. b3 {[%emt 0:03:26]} Qe8 {[%emt 0:03:48]} 9. Bb2 {[%emt 0:05:04]} c6 {[%emt 0:03:35] White is slightly better.} 10. e3 {[%emt 0:05:01]} Na6 {[%emt 0:03:23] [#]} 11. a3 $146 {[%emt 0:12:41]} (11. Qd2 $14) ({Predecessor:} 11. f3 Nc7 12. Qd2 Qh5 13. Nf2 Be6 14. Ne2 Nd7 15. Rad1 Qh6 16. e4 Bg5 17. f4 exf4 18. gxf4 {1-0 (42) Pravec,L (2350)-Zatrapa,P (2301) ICCF email 2004}) 11... Nc7 {[%emt 0:01:51]} 12. b4 {[%emt 0:02:41]} e4 {[%emt 0:04:12]} 13. d5 {[%emt 0:04:53] Prevents Be6.} cxd5 {[%emt 0:06:51]} (13... Ng4 {feels hotter.} 14. c5 Rf6 15. dxc6 bxc6 16. Ne2 Rh6) 14. cxd5 {[%emt 0:01:56]} Ng4 {[%emt 0:02:12]} 15. Rc1 {[%emt 0:09:47][%cal Oc3e4]} Bf6 {[%emt 0:02:11]} 16. Qb3 {[%emt 0:04:18][%cal Oc3e4]} Qf7 {[%emt 0:04:02]} 17. Rfd1 {[%emt 0:05:54]} Ne5 {[%emt 0:03:02]} 18. Ne2 {[%emt 0:02:12]} g5 $1 {[%emt 0:04:49]} (18... Nd3 19. Bxf6 Nxc1 20. Rxc1 gxf6 21. Nhf4 $14) 19. Bxe5 {[%emt 0:05:50] Black keeps a firm grip on the game.} ({White should play} 19. Kh1 $15) 19... dxe5 $17 {[%emt 0:00:46]} 20. f3 {[%emt 0:01:16]} exf3 {[%emt 0:04:57]} 21. Bxf3 {[%emt 0:00:10][%cal Oc1c7] [#] Black must now prevent Rxc7!} Nb5 {[%emt 0:04:30] Strongly threatening ...g4.} (21... g4 {[#]} 22. Rxc7 $1 Bd7 23. Bg2 (23. Rxb7 gxf3 24. Nc3 Rfb8 $15) 23... gxh3 24. Bxh3 $16) 22. Nf2 {[%emt 0:01:22]} Nd6 {[%emt 0:01:15]} 23. Rc2 {[%emt 0:03:08]} ({White should try} 23. Bg2) 23... Bd7 {[%emt 0:02:50]} 24. Rdc1 {[%emt 0:05:50]} Qe8 {[%emt 0:05:44] And now ...Ba4 would win.} 25. Bg2 {[%emt 0:01:01]} (25. Rc5 {might work better.}) 25... Ba4 $19 {[%emt 0:00:07]} 26. Qd3 {[%emt 0:01:50]} e4 {[%emt 0:00:57]} 27. Qd2 {[%emt 0:01:04]} Bxc2 {[%emt 0:00:04]} 28. Rxc2 {[%emt 0:00:07]} Rc8 {[%emt 0:00:11]} 29. g4 {[%emt 0:00:53]} Rxc2 {[%emt 0:03:07]} 30. Qxc2 {[%emt 0:00:05]} Qc8 {[%emt 0:02:19]} 31. Qxc8 {[%emt 0:00:28]} Rxc8 {[%emt 0:00:17]} 32. gxf5 {[%emt 0:00:04]} Nxf5 {[%emt 0:07:12]} ({And not} 32... Rc2 33. Ng3) 33. Ng4 {[%emt 0:05:49]} (33. Nxe4 $142 Kf7 34. Kf2) 33... Bb2 {[%emt 0:01:36]} 34. Bxe4 {[%emt 0:00:05]} Nd6 {[%emt 0:00:07]} 35. Bd3 {[%emt 0:00:10]} h5 {[%emt 0:01:43]} ({But not} 35... Bxa3 $2 36. e4 $19) 36. Nf2 {[%emt 0:03:25]} Bxa3 {[%emt 0:00:43]} 37. e4 {[%emt 0:00:03]} Nf7 {[%emt 0:00:22] Black is clearly winning.} 38. Ng3 {[%emt 0:00:44]} Bxb4 {[%emt 0:00:45]} 39. Nxh5 {[%emt 0:00:25]} Ne5 {[%emt 0:01:23]} 40. Nf6+ {[%emt 0:01:05]} Kg7 {[%emt 0:00:16]} 41. N6g4 {[%emt 0:30:04]} Nxg4 {[%emt 0:30:51]} 42. Nxg4 {[%emt 0:00:05]} a5 {[%emt 0:00:13]} 43. Bb5 {[%emt 0:00:26]} Rc5 {[%emt 0:00:39] Weighted Error Value: White=0.37/Black=0.09 (flawless)} 0-1